Cogmind - Beta 11.1 @@@ ROGUE MODE // 2022.08.02 @ 23:01:05 Player: maxwell Result: Destroyed self with Mini Grenade Launcher Performance ------------- Evolutions (0) 0 Regions Visited (2) 400 Robots Destroyed (39) 195 Value Destroyed (847) 847 Prototype IDs (0) 0 Alien Tech Used (0) 0 Bonus (0) 0 TOTAL SCORE: 1442 Bonus ------- None Cogmind --------- Core Integrity 0/250 Matter 250/300 Energy 100/100 System Corruption 0% Temperature Cool (0) Movement Core (1350) Ox26 Location -10/Mines Parts ------- > --- POWER (1) -------- (None) > --- PROPULSION (2) --- (None) > --- UTILITY (2) ------ Huge Storage Unit > --- WEAPON (2) ------- Mini Grenade Launcher > --- INVENTORY (25) --- Light Ion Engine Light Ion Engine Huge Storage Unit Small Matter Pod (50) High-capacity Matter Pod (200) Structural Scanner Signal Interpreter Medium Armor Plating Medium Armor Plating Medium Armor Plating Medium Armor Plating Medium Armor Plating Medium Armor Plating Particle Gun Mini Grenade Launcher Hammer Peak State ------------ > --- POWER ------------ Light Ion Engine > --- PROPULSION ------- Light Treads Light Treads > --- UTILITY ---------- Huge Storage Unit Medium Armor Plating > --- WEAPON ----------- EM Pulse Gun Medium Laser > --- INVENTORY -------- Ion Engine Light Ion Engine Light Treads Huge Storage Unit Small Matter Pod High-capacity Matter Pod Structural Scanner Sensor Array Signal Interpreter Medium Armor Plating Medium Armor Plating Medium Armor Plating Light Assault Rifle Light Assault Rifle Mini Grenade Launcher Mini Grenade Launcher [Rating: 10] Favorites ----------- Power Light Ion Engine Engine Light Ion Engine Propulsion Light Treads Treads Light Treads Utility Huge Storage Unit Device Sensor Array Storage Huge Storage Unit Protection Medium Armor Plating Weapon Medium Laser Energy Gun Medium Laser Ballistic Gun Light Assault Rifle Launcher Mini Grenade Launcher Build | -11 -10 -10 ------- Run | Scr Mat Min Slots Evolved . | . . . Power . | . . . Propulsion . | . . . Utility . | . . . Weapon . | . . . Parts Attached 20 | 6 6 8 Power 2 | 1 . 1 Engine 2 | 1 . 1 Core . | . . . Reactor . | . . . Propulsion 6 | 2 2 2 Treads 5 | 2 2 1 Leg . | . . . Wheel 1 | . . 1 Hover . | . . . Flight . | . . . Utility 6 | 1 2 3 Device 1 | . . 1 Storage 2 | 1 1 . Processor . | . . . Hackware . | . . . Protection 3 | . 1 2 Artifact . | . . . Weapon 6 | 2 2 2 Energy Gun 2 | 1 1 . Energy Cannon . | . . . Ballistic Gun 3 | 1 1 1 Ballistic Cannon . | . . . Launcher 1 | . . 1 Special Weapon . | . . . Impact Weapon . | . . . Slashing Weapon . | . . . Piercing Weapon . | . . . Special Melee Weapon . | . . . Unidentified Prototypes . | . . . Parts Lost 15 | . 3 12 Power 2 | . . 2 Propulsion 5 | . 1 4 Utility 3 | . . 3 Weapon 5 | . 2 3 Highest Loss Streak 5 | . 1 5 To Critical Strikes . | . . . Average Slot Usage (%) 87 | . 91 84 Engine 14 | . 14 14 Treads 25 | . 27 22 Device 1 | . . 2 Storage 14 | . 14 14 Protection 6 | . 6 7 Energy Gun 13 | . 20 7 Ballistic Gun 9 | . 7 10 Launcher 2 | . . 5 Naked Turns . | . . . Heaviest Build 94 | 12 94 94 Greatest Support 40 | 40 40 40 Greatest Overweight (x) 4 | . 2 4 Average Overweight (x) 1 | . 1 2 Largest Inventory Capacity 25 | 8 25 25 Average Capacity 22 | 7 19 25 Most Carried 20 | 2 20 19 Average Carried 14 | . 12 17 Final Capacity 25 | 8 25 25 Final Carried 19 | 2 19 16 Class Distribution -------------------- 100% | Mutant Dominant Class ---------------- Mutant | -10/Materials Mutant | -10/Mines Resources | -11 -10 -10 ----------- Run | Scr Mat Min Matter Collected 717 | 218 401 98 Remotely . | . . . Salvage Created 1135 | . 786 349 Parts 66 | . 44 22 Haulers Intercepted 2 | . 2 . Recyclers Shooed . | . . . Parts Field Recycled . | . . . Retrieved Matter . | . . . Parts Self-Destructed . | . . . Prevented . | . . . Kills | -11 -10 -10 ------- Run | Scr Mat Min Combat Hostiles Destroyed 28 | . 15 13 Guns 20 | . 13 7 AOE 8 | . 2 6 Classes Destroyed 9 | . 7 2 Worker 1 | . 1 . Builder 2 | . 1 1 Tunneler 3 | . . 3 Hauler 2 | . 2 . Recycler 1 | . 1 . Watcher 3 | . 3 . Swarmer 10 | . 5 5 Grunt 17 | . 10 7 Assembled 1 | . . 1 Best Kill Streak 8 | . 5 8 Combat Bots Only 5 | . 5 4 Max Kills in Single Turn 4 | . 2 4 Gunslinging . | . . . Exploded 2 | . 1 2 Melee . | . . . Uniques/NPCs Destroyed . | . . . Combat | -11 -10 -10 -------- Run | Scr Mat Min Damage Taken 1620 | . 602 1018 Core 269 | . 89 180 Absorbed by Shields . | . . . Core Remaining (%) 100 | 100 . . Volleys Fired 101 | . 60 41 Largest 2 | . 2 2 Hottest 90 | . 90 70 Shots Fired 189 | . 117 72 Gun 181 | . 117 64 Cannon . | . . . Launcher 8 | . . 8 Special . | . . . Kinetic 70 | . 35 35 Thermal 89 | . 60 29 Explosive 8 | . . 8 Electromagnetic 22 | . 22 . Robot Hit Streak 11 | . 11 8 Robot Miss Streak 6 | . 5 6 Penetration Max . | . . . Secondary Targets 5 | . 3 2 Max Gunslinging Chain 1 | . 1 1 Shots Hit Robots 117 | . 76 41 Core Hits 62 | . 34 28 Critical Kills . | . . . Critical Parts Destroyed 1 | . . 1 Critical Strikes 11 | . 7 4 Burn 10 | . 7 3 Destroy 1 | . . 1 Melee Attacks . | . . . Impact . | . . . Slashing . | . . . Piercing . | . . . Sneak Attacks . | . . . Combat Hostiles . | . . . Follow-up Attacks . | . . . Damage Inflicted 2373 | 6 1201 1166 Guns 1355 | . 944 411 Cannons . | . . . Explosions 971 | . 233 738 Melee . | . . . Ramming 47 | 6 24 17 Kinetic 367 | . 205 162 Thermal 902 | . 653 249 Explosive 828 | . 90 738 Electromagnetic 229 | . 229 . Impact . | . . . Slashing . | . . . Piercing . | . . . Highest Corruption . | . . . Average Corruption . | . . . Corruption Purged . | . . . Corruption Blocked . | . . . Overload Shots . | . . . Overflow Damage 91 | . . 91 Projectiles . | . . . Explosions 91 | . . 91 Melee . | . . . Knockbacks . | . . . Impact . | . . . Kinetic . | . . . Secondary . | . . . Self-Inflicted Damage 256 | . 61 195 Shots 8 | . 2 6 Rammed 8 | 1 5 2 Targets Rammed 9 | 1 6 2 Kicked . | . . . Crushed 1 | . 1 . Highest Temperature 360 | . 360 170 Average Temperature 88 | . 93 78 Received Heat Transfer 459 | . 240 219 Siege Activations . | . . . Robots Corrupted . | . . . Combat Hostiles . | . . . Parts Fried . | . . . Impact Corruptions . | . . . Robots Melted . | . . . Combat Hostiles . | . . . Parts Melted 8 | . 5 3 Heat Transferred 3097 | . 2135 962 Parts Sabotaged . | . . . Parts Stolen . | . . . Parts Stripped . | . . . Power Chain Reactions 2 | . 2 . Missiles Intercepted . | . . . Alert | -11 -10 -10 ------- Run | Scr Mat Min Peak Influence 305 | . 305 140 Initial 36 | . . 36 Average 82 | . 136 33 Maximum Alert Level 1 | . 1 . Low Security (%) 92 | 100 83 100 Level 1 7 | . 16 . Level 2 . | . . . Level 3 . | . . . Level 4 . | . . . Level 5 . | . . . High Security . | . . . Max Security . | . . . Squads Dispatched 3 | . 3 . Investigation 3 | . 3 . Extermination . | . . . Reinforcement . | . . . Assault . | . . . Garrison . | . . . Intercept . | . . . Searches Triggered . | . . . Construction Impeded . | . . . Haulers Reinforced . | . . . Active Scanning Responses . | . . . Cargo Convoy Interrupts . | . . . Stealth | -11 -10 -10 --------- Run | Scr Mat Min Distress Signals . | . . . Communications Jammed . | . . . Distress Signals . | . . . Times Spotted 37 | . 22 15 Peak Tracking Total 5 | . 3 5 Tactical Retreats 1 | . . 1 Traps | -11 -10 -10 ------- Run | Scr Mat Min Traps Triggered 1 | . 1 . Indirectly . | . . . Trap Hack Attempts . | . . . Triggered . | . . . Disarmed . | . . . Reprogrammed . | . . . Reused . | . . . Traps Extracted . | . . . Installed . | . . . Triggered . | . . . Machines | -11 -10 -10 ---------- Run | Scr Mat Min Machines Disabled 4 | . 4 . Max in Single Turn 2 | . 2 . Machines Sabotaged . | . . . Garrisons Compromised . | . . . Overloaded Fab Kills . | . . . Hacking | -11 -10 -10 --------- Run | Scr Mat Min Machines Accessed 7 | . 7 . Terminals 4 | . 4 . Fabricators . | . . . Repair Stations 1 | . 1 . Recycling Units 2 | . 2 . Scanalyzers . | . . . Garrison Access . | . . . Total Hacks 18 | . 18 . Successful 7 | . 7 . Failed 11 | . 11 . Catastrophic . | . . . Database Lockouts . | . . . Manual 18 | . 18 . Terminals 13 | . 13 . Fabricators . | . . . Repair Stations 1 | . 1 . Recycling Units 4 | . 4 . Scanalyzers . | . . . Garrison Access . | . . . Terminal Hacks 1 | . 1 . Terminal Index 1 | . 1 . Fabricator Hacks . | . . . Repair Station Hacks . | . . . Recycling Unit Hacks 1 | . 1 . Retrieve Components 1 | . 1 . Scanalyzer . | . . . Garrison Access Hacks . | . . . Unauthorized Hacks 5 | . 5 . Terminals 2 | . 2 . Botnet 1 | . 1 . Operators 1 | . 1 . Fabricators . | . . . Repair Stations 1 | . 1 . Mechanics 1 | . 1 . Recycling Units 2 | . 2 . Tunnel 2 | . 2 . Scanalyzers . | . . . Garrison Access . | . . . Data Cores Recovered . | . . . Used . | . . . Hacking Detections 5 | . 5 . Full Trace Events 1 | . 1 . Feedback Events . | . . . Feedback Blocked . | . . . Robot Schematics Acquired . | . . . Robots Built . | . . . Authchips . | . . . Time . | . . . Total Robot Build Rating . | . . . Part Schematics Acquired . | . . . Parts Built . | . . . Authchips . | . . . Time . | . . . Total Part Build Rating . | . . . Parts Repaired . | . . . Time . | . . . Parts Recycled . | . . . Recycled Matter . | . . . Retrieved Matter . | . . . Retrieved Components 4 | . 4 . Parts Scanalyzed . | . . . Part Schematics Acquired . | . . . Parts Damaged . | . . . Bothacking | -11 -10 -10 ------------ Run | Scr Mat Min Used RIF Installer . | . . . Robots Hacked . | . . . Non-combat . | . . . Combat . | . . . Robot Hacks Applied . | . . . Relay Couplers Released . | . . . Fabnet Peak Effective % . | . . . Robots Rewired . | . . . Allies Hacked . | . . . Hacks Repelled . | . . . Allies | -11 -10 -10 -------- Run | Scr Mat Min Total Allies . | . . . Largest Group . | . . . Highest-Rated Group . | . . . Highest-Rated Ally . | . . . Total Orders . | . . . Ally Attacks . | . . . Total Damage . | . . . Kills . | . . . Allies Corrupted . | . . . Allies Melted . | . . . Intel | -11 -10 -10 ------- Run | Scr Mat Min Robot Analysis Total . | . . . Derelict Logs Recovered 1 | . . 1 Drone Launches . | . . . Drone Recoveries . | . . . Exploration | -11 -10 -10 ------------- Run | Scr Mat Min Turns Passed 3565 | 69 1721 1775 Spaces Moved 1052 | 38 572 442 Core 3 | 3 . . Treads 1049 | 35 572 442 Legs . | . . . Wheels . | . . . Hover . | . . . Flight . | . . . Fastest Speed 50 | 50 160 320 Average Speed 298 | 151 255 366 Slowest Speed 480 | 160 320 480 Overloaded Moves . | . . . Propulsion Burnouts . | . . . Robots Hopped . | . . . Cave-ins Triggered . | . . . Exploration Rate (%) 64 | 4 94 94 Regions Visited 2 Branch Regions 1 Pre-discovered Areas 2 | . 2 . Known Exits Taken . | . . . Unknown Exits Taken 2 | 1 1 . Scrap Searched 1 | . . 1 Spaces Dug 17 | . . 17 Terrain Destroyed 86 | . 25 61 Melee . | . . . Projectile . | . . . AOE 86 | . 25 61 Terrain Rammed . | . . . Walls Destroyed . | . . . Machines Disabled . | . . . Actions | -11 -10 -10 --------- Run | Scr Mat Min Total 1284 | 46 709 529 Wait 78 | . 45 33 Move 1051 | 38 571 442 Hop . | . . . Pick Up 25 | 2 20 3 Fast Attach 10 | 6 3 1 Attach 9 | . 3 6 Detach . | . . . Swap 1 | . . 1 Drop 1 | . 1 . Fire 101 | . 60 41 Melee . | . . . Ram . | . . . Kick . | . . . Crush 8 | . 6 2 Escape Stasis . | . . . Rewire . | . . . Trap . | . . . Miscellaneous . | . . . Route ------- -11/Scrapyard -10/Materials (discovered 4 exits: [*Mat x3] / [*Min]) -10/Mines (discovered 2 exits: [*Mat x2]) History --------- Turn | Location | Event 4 | -11/Scrapyard | Discovered new exit (range 15) 70 | -11/Scrapyard | Entered Materials 318 | -10/Materials | Build established: Mutant 554 | -10/Materials | Discovered new exit (range 6) 781 | -10/Materials | Discovered new exit (range 14) 1141 | -10/Materials | Discovered new exit (range 10) 1528 | -10/Materials | Discovered new exit (range 16) 1791 | -10/Materials | Entered Mines 1943 | -10/Mines | Discovered new exit (range 11) 2670 | -10/Mines | Core integrity fell below 50% 2826 | -10/Mines | Learned 2 Materials zone layouts 2893 | -10/Mines | Discovered new exit (range 8) 2935 | -10/Mines | Lost 3 parts (1n2w) 3517 | -10/Mines | Excavation squad dispatched 3517 | -10/Mines | A large section of the Mines collapsed 3562 | -10/Mines | Core integrity fell below 20% 3566 | -10/Mines | Destroyed self with Mini Grenade Launcher Last Messages --------------- 03553_ U-05 Engineer lays Concrete. 03554_ T-07 Excavator is excavating. 03554_ U-05 Engineer lays Concrete. 03559_ Lgt. Treads destroyed. 03559_ R-06 Scavenger collects Lgt. Ion Engine. 03560_ T-07 Excavator is excavating. 03560_ U-05 Engineer lays Concrete. 03563_ Acquired Wheel. 03563_ U-05 Engineer lays Concrete. 03563_ Med. Armor Plating destroyed. 03563_ Wheel destroyed. 03563_ Ion Engine destroyed. 03563_ R-06 Scavenger collects Med. Matter Pod. 03564_ U-05 Engineer lays Concrete. 03564_ G-34 Mercenary destroyed. 03564_ T-07 Excavator destroyed. 03564_ as-27174 destroyed. 03564_ U-05 Engineer destroyed. 03565_ T-07 Excavator is excavating. 03566_ G-34 Mercenary destroyed. Map ----- +----------------------------------------------------+ | ???## #??????????????????????? | | ????#### #### #??????????????????????? | | ???????## ##??# #??????????????????????? | | ????????# ###?# #??????????????????????? | | ????????# #?# #??????????????????????? | | ????????## #?# ##########?????????????? | | ?????????# #?# #?????????????? | | ?????????# #?########## #?????????????? | | #####????# #??????????# ##########????? | | ##???# #??????????# ###??? | | ## ##### #??????????# ##?? | | ## ## #??????????########## #?? | | ###?????##????????# # # #?? | | ##???## #???????# # # #?? | | #### #???# ????#### # # #?? | | ???# #???# #???# # ## #?? | | ???## ##???# ##?## # #?? | | ????## ##???# #?# ####?? | | ?????## #????# ### # < #???? | | ?????## #????######## ## #???? | | ????## ##?????##a;### # ##???? | | ???## ####???# # = #????? | | ??## ##??# ! ### ###????? | | ### ## #### %% # #??????? | | # #### ## *=| # #??????? | | #### t% @ *= # #??????? | | ## r % ! #??????? | | =[*| #??????? | | # ###??????? | | #### ## ### ### #######????????? | | ???## #### ##?#####?# #??????????????? | | ????####??####????????# #??????????????? | | ??????????????????????# #??????????????? | | ??????????????????????# #??????????????? | | ??????????????????????# #??????????????? | | ??????????????????????# ??????????????? | | ??????????????????????# #?????????????? | | ??????????????????????# #?????????????? | | ###??????????????????? ?????????????? | | #??????????????????? #?????????????? | | #???????????????????? #?????????????? | | " #???????????????????? ??????????????? | | " #?????????????????????????????????????? | | " #?????????????????????????????????????? | | #?????????????????????????????????????? | | ###?????????????????????????????????????? | | ????????????????????????????????????????? | | ????????????????????????????????????????? | | | | | +----------------------------------------------------+ Best States ------------- Heat Dissipation 25 Energy Generation 10 Energy Capacity 250 Matter Stores 300 Matter Capacity 300 Sight Range 16 Robot Scan Range 14 Terrain Scan Density 10 Armor Coverage 225 Evasion (%) 40 Recoil Reduction 2 Item Schematics ----------------- None Robot Schematics ------------------ None Fabricated ------------ Nothing Alien Tech Used ----------------- None Achievements -------------- None Challenges ------------ None Game ------ Seed FortressNovaChainsword Manual? 0 Play Time 00:08:47 Cumulative 258.8 hours Start 2022.08.02 @ 22:54:28 End 2022.08.02 @ 23:01:05 Sessions 1 Manual Loads 0 Difficulty Rogue Special Mode None Game No. 364 Rogue 342 Adventurer 4 Explorer 18 Win Type - Total 10 Types 8/0/0/2/0/0/0/0/0 Lore% 70 Gallery% 89 Achievement% 72 Wizard Run 0 Options --------- ASCII 0 Keyboard 1 Movement Numpad Keybinds 0 Fullscreen 1 Font 18/SmallcapsGlow Map View 76x50 Tactical HUD 1 Map Filters NONE Filters NONE Steam 1 RUN: e2ca0e09-bb90-47b4-aedf-2c1ea9f22806